Workbook

Sheet global grafico (hidden)
K12: hasta 50.000 UF | M12: hasta 75.000 UF
D13: DESDE | E13: FACTOR | F13: REBAJA | G13: IMPUESTO | K13: PROPYME TRANSP. | M13: PROPYME GENERAL | O13: REGIMEN GENERAL
D14: M$0. | E14: 0.0% | F14: M$0.
D15: M$8.3 | E15: 4.0% | F15: M$0.3 | I15: ingresos | K15: $$$$$$$$$$ | M15: $$$$$$$$$$ | O15: $$$$$$$$$$
D16: M$18.4 | E16: 8.0% | F16: M$1.1 | I16: - gastos | K16: $$$$$$ | M16: $$$$$$ | O16: $$$$$$
D17: M$30.6 | E17: 13.5% | F17: M$2.7 | I17: = utilidad | K17: 100,000,000 | M17: 100,000,000 | O17: 100,000,000
D18: M$42.9 | E18: 23.0% | F18: M$6.8
D19: M$55.1 | E19: 30.4% | F19: M$10.9
D20: M$73.5 | E20: 35.0% | F20: M$14.3 | I20: % impuesto | K20: 0% | M20: 25% | O20: 27%
D21: M$189.8 | E21: 40.0% | F21: M$23.8 | I21: impuesto | K21: =+K17*K20 -> 0 | M21: =+M17*M20 -> 25,000,000 | O21: =+O17*O20 -> 27,000,000
O22: =O21*0.65 -> 17,550,000
F23: IMPUESTO | G23: $$$$$$
F24: CRÉDITO | G24: $$$$
F25: PAGO O DEV | G25: $$$

Sheet compara glogal primera
B1: N° PROPIEDADES | D1: 10 | E1: + 2 DFL2
B2: VALOR PROPIEDAD | D2: 70,000,000
B3: VALOR ARRIENDO | D3: =D2*0.5/100 -> 350,000
B4: CUOTA CRÉDITO | D4: 250,000
B5: DEPRECIACIÓN ANUAL | D5: =(D2*0.8)/L34*D1 -> 35,000,000
B6: INGRESOS ARRIENDO ANUAL | D6: =+D3*D1*12 -> 42,000,000 | F6: CAPITAL | G6: INTERESES | H6: SEGUROS
B7: DIVIDENDO ANUAL | D7: =D4*12*D1 -> 30,000,000 | F7: =D7*51% -> 15,300,000 | G7: =D7*43% -> 12,900,000 | H7: =D7*6% -> 1,800,000
B8: CONTRIBUCIONES | D8: =70000*D1 -> 700,000
B9: INGRESO POR ARRIENDOS | D9: =D6 -> 42,000,000
B10: VENTA PROPIEDAD | D10: 0 | E10: > 8,000 UF
B11: INGRESOS X SUELDO | D11: 50,000,000
B12: INGRESOS POR RETIROS 14A | D12: 35,000,000 | E12: 27.0% | F12: =D12*E12 -> 9,450,000 | G12: 65.0% | H12: =F12*G12 -> 6,142,500
B13: INGRESOS POR HONORARIOS | D13: 40,000,000 | E13: 14.50% | F13: =D13*E13 -> 5,800,000 | G13: (ppm de honorarios)
C14: renta bruta | D14: =SUM(D9:D13) -> 167,000,000
B16: UTA 2025 | C16: https://www.sii.cl/valores_y_fechas/utm/utm2025.htm | D16: 834,504 | E16: =IF(AND(H19>90,H19<=150),250-(1.667*H19),100)/100 -> 1.00
C18: 2A CATEGORIA | L18: 1A CATEGORIA - 14A | W18: =C19 -> UTM Dic 2025 | X18: =D19 -> $69,542
C19: UTM Dic 2025 | D19: 69,542 | F19: renta bruta | G19: =D14 -> $ 167,000,000 | H19: =G19/D16 -> 200 UTA | L19: INGRESOS ANUALES | W19: (*ajustar)
C20: (*ajustar) | G20: =IF(G19>D16*150,0,IF(G7>D16*8,D16*8*E16,G7))*-1 -> $ 0 | H20: intereses | M20: XARRIENDO | N20: =D6 -> 42,000,000 | Z20: imponible | AA20: =IF(X39<1,0,X39) -> $ 0
F21: renta imponible | G21: =G19+G20 -> $ 167,000,000 | N21: =SUM(N20) -> 42,000,000 | W21: TABLA DE IMPUESTO GLOBAL COMPLEMENTARIO
C22: TABLA DE IMPUESTO GLOBAL COMPLEMENTARIO | L22: GASTOS ANUALES | W22: DESDE | X22: HASTA | Y22: FACTOR | Z22: REBAJA | AA22: IMPUESTO
B23: 1 | C23: DESDE | D23: HASTA | E23: FACTOR | F23: REBAJA | G23: IMPUESTO | M23: PATENTE | N23: =70000+(D1+2*(D2))*O23/1000 -> 420,000 | O23: 2.5 | P23: ="("&O23 & " / 1,000 + $ 70.000)" -> (2,5 / 1,000 + $ 70.000) | X23: =162*X18 -> 11,265,804 | Y23: EXENTO | AA23: =IF(AA20<=X23,0,0) -> 0
B24: 2 | D24: =162*D19 -> 11,265,804 | E24: EXENTO | G24: =IF(G21<=D24,0,0) -> 0 | M24: INTERESES | N24: =G7 -> 12,900,000 | W24: =+X23+1 -> 11,265,805 | X24: =360*X18 -> 25,035,120 | Y24: 0.040 | Z24: =6.48*X18 -> 450,632.16 | AA24: =IF(AND($AD$4>=W24,$AD$4<=X24),($AD$4*Y24)-Z24,0) -> 0
B25: 3 | C25: =+D24+1 -> 11,265,805 | D25: =360*D19 -> 25,035,120 | E25: 0.040 | F25: =6.48*D19 -> 450,632.16 | G25: =IF(AND($G$21>=C25,$G$21<=D25),($G$21*E25)-F25,0) -> 0 | M25: SEGUROS | N25: =H7 -> 1,800,000 | W25: 25,035,121 | X25: =600*X18 -> 41,725,200 | Y25: 0.080 | Z25: =20.88*X18 -> 1,452,036.96 | AA25: 0
B26: 4 | C26: 25,035,121 | D26: =600*D19 -> 41,725,200 | E26: 0.080 | F26: =20.88*D19 -> 1,452,036.96 | G26: 0 | M26: MANTENCION | N26: =D6*O26 -> 2,100,000 | O26: 5% | P26: (5% del ingreso) | W26: 41,725,201 | X26: =840*X18 -> 58,415,280 | Y26: 0.135 | Z26: =53.88*X18 -> 3,746,922.96 | AA26: 0
B27: 5 | C27: 41,725,201 | D27: =840*D19 -> 58,415,280 | E27: 0.135 | F27: =53.88*D19 -> 3,746,922.96 | G27: 0 | M27: ADMINISTRACION | N27: =D6*O27 -> 4,200,000 | O27: 10% | P27: (10% sobre el ingreso) | W27: 58,415,281 | X27: =1080*X18 -> 75,105,360 | Y27: 0.230 | Z27: =133.68*X18 -> 9,296,374.56 | AA27: 0
B28: 6 | C28: 58,415,281 | D28: =1080*D19 -> 75,105,360 | E28: 0.230 | F28: =133.68*D19 -> 9,296,374.56 | G28: 0 | M28: CONTRIBUCIONES | N28: =D8 -> 700,000 | W28: 75,105,361 | X28: =1440*X18 -> 100,140,480 | Y28: 0.304 | Z28: =213.6*X18 -> 14,854,171.20 | AA28: 0
B29: 7 | C29: 75,105,361 | D29: =1440*D19 -> 100,140,480 | E29: 0.304 | F29: =213.6*D19 -> 14,854,171.20 | G29: 0 | M29: CONTADOR | N29: 1,200,000 | W29: 100,140,481 | X29: =3720*X18 -> 258,696,240 | Y29: 0.350 | Z29: =279.84*X18 -> 19,460,633.28 | AA29: 0
B30: 8 | C30: 100,140,481 | D30: =3720*D19 -> 258,696,240 | E30: 0.350 | F30: =279.84*D19 -> 19,460,633.28 | G30: 38,989,367 | N30: =SUM(N24:N29) -> 22,900,000 | W30: =+X29+1 -> 258,696,241 | X30: =1800*X19 -> 0 | Y30: 0.400 | Z30: =465.84*X18 -> 32,395,445.28 | AA30: =IF($AD$4>=W30,($AD$4*Y30)-Z30,0) -> 0
C31: =+D30+1 -> 258,696,241 | D31: y más | E31: 0.400 | F31: =465.84*D19 -> 32,395,445.28 | G31: =IF($G$21>=C31,($G$21*E31)-F31,0) -> 0
F32: Impuesto global | G32: =SUM(G24:G31) -> 38,989,367 | M32: perdida o ganacia CONTABLE | N32: =N21-N30 -> 19,100,000 | P32: EBITDA | Q32: CAJA | Z32: Impuesto global | AA32: =SUM(AA23:AA30) -> 0
F33: Contribuciones | G33: =IF(D8>G32,G32,D8)*-1 -> -700,000 | Z33: Crédito | AA33: =X41/X40*X42*0.65 -> $ 0 | AB33: 65%
F34: Crédito Honorarios | G34: =F13*-1 -> -5,800,000 | L34: 16 | M34: DEPRECIACIÓN - | N34: =D5+D5*O35 -> 35,525,000 | Z34: pago o devolución | AA34: =+AA32-AA33 -> $ 0
F35: Crédito retiros | G35: =H12*-1 -> -6,142,500 | M35: CORRECCION MONETARIA + | N35: =(D1*D2)*O35 -> 10,500,000 | O35: 1.5% | P35: https://www.sii.cl/valores_y_fechas/correccion_monetaria/correccion2025.htm | Q35: sii
F36: =IF(G36<=0,"Devolución","Pago") -> Pago | G36: =SUM(G32:G35) -> $ 26,346,867 | M36: RLI (perdida o ganacia) | N36: =N32-N34+N35 -> -$ 5,925,000
W37: Semi Integrado 14A
W38: Año com 2025 | X38: 27.0%
C39: *sueldo más retiros aumentan tu capacidad de crédito | M39: EN 16 AÑOS | W39: Utilidad | X39: =N36 -> -$5,925,000
M40: CONTABLE + | N40: =N32*L34 -> 305,600,000 | P40: CAJA | W40: Socios | X40: 1
M41: CM + | N41: =M72 -> 130,255,133 | P41: =N32*L34 -> 305,600,000 | Q41: UTILIDADES | W41: Impuesto 1ª | X41: =IF(X39<1,0,X39*X38) -> $ 0
M42: DEPRECIACIÓN - | N42: =N72 -> 434,708,777 | P42: =D2*D1*10/100 -> 70,000,000 | Q42: 27BIS | W42: % Retiro | X42: 100%
N43: =N40+N41-N42 -> 1,146,356 | P43: =P41+P42 -> 375,600,000
Z46: Impuesto Empresa | AA46: =+X41 -> $ 0
M47: impuesto 27% | N47: =IF(N36>0,N36*27/100,0) -> 0 | Z47: Impuesto Socios | AA47: =+AA34*X40 -> $ 0
M48: devolución socios | N48: =AA47 -> $ 0 | V48: *modifique los valores de los casilleros amarillos | Z48: Total imp pagados | AA48: =+AA46+AA47 -> $ 0
M49: impuesto empresa + socio | N49: =+N47+N48 -> $ 0
L53: CORRECCIÓN MONETARIA 16 ÑOS
L55: AÑO | M55: CORRECCIÓN MONETARIA | N55: DEPRECIACIÓN | P55: VALOR BIENES | R55: PÉRDIDA ACUMULADA
L56: 1 | M56: =D2*D1*O35 -> 10,500,000 | N56: =(D2*D1+M56)*0.8/L34 -> 35,525,000 | P56: =D2*D1+M56-N56 -> 674,975,000 | R56: =N32+M56-N56 -> -5,925,000
L57: 2 | M57: =P56*$O$35 -> 10,124,625 | N57: =P56*0.8/$L$34 -> 33,748,750 | P57: =P56+M57-N57 -> 651,350,875 | R57: =$N$32+M57-N57+R56 -> -10,449,125
L58: 3 | M58: =P57*$O$35 -> 9,770,263 | N58: =P57*0.8/$L$34 -> 32,567,544 | P58: =P57+M58-N58 -> 628,553,594 | R58: =$N$32+M58-N58+R57 -> -14,146,406
L59: 4 | M59: 9,428,304 | N59: =P58*0.8/$L$34 -> 31,427,680 | P59: 606,554,219 | R59: -17,045,781
L60: 5 | M60: 9,098,313 | N60: 30,327,711 | P60: 585,324,821 | R60: -19,175,179
L61: 6 | M61: 8,779,872 | N61: 29,266,241 | P61: 564,838,452 | R61: -20,561,548
L62: 7 | M62: 8,472,577 | N62: 28,241,923 | P62: 545,069,106 | R62: -21,230,894
L63: 8 | M63: 8,176,037 | N63: 27,253,455 | P63: 525,991,688 | R63: -21,208,312
L64: 9 | M64: 7,889,875 | N64: 26,299,584 | P64: 507,581,979 | R64: -20,518,021
L65: 10 | M65: 7,613,730 | N65: 25,379,099 | P65: 489,816,609 | R65: -19,183,391
L66: 11 | M66: 7,347,249 | N66: 24,490,830 | P66: 472,673,028 | R66: -17,226,972
L67: 12 | M67: 7,090,095 | N67: 23,633,651 | P67: 456,129,472 | R67: -14,670,528
L68: 13 | M68: 6,841,942 | N68: 22,806,474 | P68: 440,164,940 | R68: -11,535,060
L69: 14 | M69: 6,602,474 | N69: 22,008,247 | P69: 424,759,168 | R69: -7,840,832
L70: 15 | M70: 6,371,388 | N70: 21,237,958 | P70: 409,892,597 | R70: -3,607,403
L71: 16 | M71: 6,148,389 | N71: 20,494,630 | P71: 395,546,356 | R71: 1,146,356
M72: =SUM(M56:M71) -> 130,255,133 | N72: =SUM(N56:N71) -> 434,708,777

Sheet DEPRECIACION
R8: propiedad | S8: 100,000,000
R9: terreno | S9: 20,000,000
S10: =+S8-S9 -> 80,000,000
P11: vida útil | Q11: 16 | R11: gasto anual : | S11: =S10/Q11 -> 5,000,000
C30: RENTA – ACTUAL LEY SOBRE IMPUESTO A LA – ART. 31, N°5, ART. 41. (Ord. Nº 005, de 02-01-2018)
C32: CONSULTA SOBRE VALOR DEL TERRENO PARA LOS FINES DE LA DETERMINACIÓN DEL MONTO SUSCEPTIBLE DE DEPRECIACIÓN DE UN BIEN INMUEBLE.
C34: Se ha recibido en esta Dirección Nacional, su presentación indicada en el antecedente mediante la cual consulta sobre la forma de determinar, para los efectos del artículo 31, N° 5 de la LIR, aquella parte del precio de compra de un inmueble que corresponde al valor de las construcciones y cuál corresponde al valor del terreno.
C36: ANTECEDENTES:
C38: En relación con presentación recibida en esa Unidad, la consultante señala haber adquirido un inmueble sin haber efectuado una identificación y cuantificación en la respectiva escritura del valor del terreno sobre el cual se encuentra la construcción cuya depreciación sería, según indica, susceptible de acogerse al mecanismo de depreciación aplicable a los bienes que forman parte del activo inmovilizado.
C40: Señala a continuación, que el artículo 31 N° 5 de la Ley de Impuesto a la Renta (LIR), en lo pertinente, señala que para el cálculo de la renta líquida imponible de los contribuyentes de la Primera Categoría que determinan sus rentas efectivas mediante contabilidad completa, podrán deducir una cuota anual de depreciación por los bienes del activo inmovilizado a contar de su utilización en la empresa, calculada sobre el valor neto de los bienes a la fecha del balance respectivo, una vez efectuada la revalorización obligatoria que dispone el artículo 41, sobre ajustes de corrección monetaria.
C42: Indica además, que la presentación efectuada por el interesado persigue contar con una certeza jurídica más allá de la posibilidad real de descontar del costo tributario del bien inmueble, aquella cantidad que corresponde al valor del terreno según la información que aparece en el certificado de avalúo detallado a la que el propietario tiene acceso desde la página web de este Servicio. La misma práctica resulta de general aplicación en las respectivas áreas de fiscalización.
C44: En atención a que el contribuyente no ha efectuado una distinción entre el valor del terreno y las construcciones en el contrato de compraventa respectivo, y considerando especialmente que la depreciación no resulta aplicable a terrenos, la opinión de esa Dirección Regional, es que en la situación planteada corresponderá al propio contribuyente determinar, para los efectos del artículo 31, N° 5 de la LIR, aquella parte del precio de compra que corresponde al valor de las construcciones, sin perjuicio de las facultades de fiscalización propias de este Servicio.
C46: ANÁLISIS.
C48: Sobre el particular cabe señalar en primer término, que de acuerdo con lo que establece el artículo 31 N° 5 de la LIR, se acepta tributariamente como gasto, una cuota anual de depreciación de los bienes físicos del activo inmovilizado a contar de su utilización en la empresa, calculada ésta sobre el valor neto de los bienes a la fecha del balance respectivo una vez efectuada la revalorización obligatoria que dispone el artículo 41, lo anterior, siempre que la utilización de dichos bienes se relacione con el giro del negocio y se cumpla además con las condiciones y requisitos que en general el artículo 31 establece para dichos efectos.
C50: En relación con esta materia y cuando se trate de bienes inmuebles, el Servicio ha sostenido [1] en forma reiterada la imposibilidad de depreciar el valor de terrenos, por no estar sujetos a desgaste o agotamiento durante su uso o empleo y que por tanto, el valor o costo de dichos terrenos puede ser reconocido como tal en la oportunidad en que sean enajenados.
C52: Ahora bien, en lo que a su consulta especifica se refiere, esto es, sobre cuál sería el criterio específico que se debería aplicar para los fines de determinar separadamente el valor del terreno y el de las construcción del bien inmueble, en los casos en que edificio y terreno hayan sido adquiridos conjuntamente y los valores que correspondan a cada cual no vengan específicamente señalados en los documentos que acrediten la adquisición del bien, cabe expresar que la LIR no cuenta dentro de sus disposiciones con una norma de aplicación específica para tales efectos.
C54: CONCLUSIÓN.
C56: En consecuencia, para los fines de su consulta, esto es, para los efectos del cálculo de la depreciación de un bien inmueble y específicamente para los fines de determinar el valor del terreno no depreciable de dicho bien, cabe expresar que en aquellos casos en que terreno y construcción hayan sido adquiridos conjuntamente en un solo acto y los documentos que acrediten formalmente dicha adquisición, como la escritura y, cuando corresponda, la factura respectiva, no exista constancia del valor específico, detallado y separado, tanto del terreno como de la construcción, para determinar cuál es la parte del valor de adquisición del inmueble que corresponde considerar como valor del terreno se utilizará uno de los siguientes procedimientos:
C58: 1. El contribuyente podrá efectuar una tasación comercial del terreno, a la fecha de adquisición del inmueble, sin perjuicio de las facultades generales de fiscalización del Servicio respecto de dicha tasación; o bien,
C60: 1. Se determinará el porcentaje que representa el valor de tasación fiscal del terreno, en el valor de tasación fiscal total del inmueble. El porcentaje determinado en la forma indicada, aplicado sobre el valor de adquisición del inmueble, determinará el valor de adquisición del terreno, para los efectos tributarios ya comentados. Para los fines del cálculo señalado, los valores de tasación fiscal tanto del terreno como del total del inmueble, pueden ser consultados en las páginas de Internet del Servicio www.sii.cl .
C62: En aquellos casos en que no pueda aplicarse el procedimiento indicado en este número, porque en el avalúo fiscal del inmueble no se indica el valor del terreno, como por ejemplo en el caso de departamentos, bodegas y estacionamientos de un edificio, en que el valor del terreno se encuentra prorrateado en el valor de éstos junto con el valor de otras construcciones de uso comunitario, como sala de eventos, sala de ejercicios, etc. el avalúo del terreno deberá consultarse a este Servicio.
C64: FERNANDO BARRAZA LUENGO
C65: DIRECTOR
C66: Oficio N° 005, de 02.01.2018
C67: Subdirección Normativa
C68: Dpto. de Impuestos Directos
C69: ________________________________________
C70: [1] Oficio N° 1.190, de 06.06.1997.
